[Event "*** Titled Tuesday 3|2 Blitz"]
[Site "Chess.com"]
[Date "2015.10.06"]
[Round "2"]
[White "Tal-Baronfew"]
[Black "Aygehovit1992"]
[Result "1-0"]
[WhiteElo "2677"]
[BlackElo "2462"]
[TimeControl "180+2"]
[EndTime "11:20:53 PDT"]
[Termination "Tal-Baronfew won by checkmate"]

1. e4 {[%clk 0:03:01]} 1... c5 {[%clk 0:03:00.5]} 2. Nf3 {[%clk 0:03:01.8]} 2...
d6 {[%clk 0:03:01.8]} 3. d4 {[%clk 0:03:02.7]} 3... cxd4 {[%clk 0:03:03.5]} 4.
Nxd4 {[%clk 0:03:04.6]} 4... Nf6 {[%clk 0:03:05]} 5. Nc3 {[%clk 0:03:05.7]} 5...
g6 {[%clk 0:03:06.7]} 6. Be3 {[%clk 0:03:05.7]} 6... Bg7 {[%clk 0:03:08.1]} 7.
h3 {[%clk 0:03:07.1]} 7... O-O {[%clk 0:03:07.4]} 8. Qd2 {[%clk 0:03:07.6]} 8...
Nc6 {[%clk 0:03:08.6]} 9. O-O-O {[%clk 0:03:08.6]} 9... Nxd4 {[%clk 0:03:05.4]}
10. Bxd4 {[%clk 0:03:10.2]} 10... Be6 {[%clk 0:03:07.1]} 11. Kb1 {[%clk
0:03:09.1]} 11... Qa5 {[%clk 0:03:08.1]} 12. a3 {[%clk 0:03:09.6]} 12... Rfc8
{[%clk 0:03:07.4]} 13. g4 {[%clk 0:03:08]} 13... b5 {[%clk 0:03:06.5]} 14. g5
{[%clk 0:03:04.8]} 14... Nh5 {[%clk 0:02:53.2]} 15. Nxb5 {[%clk 0:02:46.2]}
15... Qa4 {[%clk 0:02:48.4]} 16. Nc3 {[%clk 0:02:38.1]} 16... Qd7 {[%clk
0:02:38.5]} 17. Bxg7 {[%clk 0:02:33.6]} 17... Nxg7 {[%clk 0:02:36.2]} 18. h4
{[%clk 0:02:30.3]} 18... Rab8 {[%clk 0:02:37.5]} 19. Ka1 {[%clk 0:02:28]} 19...
Qb7 {[%clk 0:02:37.7]} 20. Rb1 {[%clk 0:02:25.8]} 20... Qb6 {[%clk 0:02:26.7]}
21. Bd3 {[%clk 0:02:16.6]} 21... Qa5 {[%clk 0:02:05.5]} 22. f4 {[%clk
0:02:13.5]} 22... Bd7 {[%clk 0:01:58.7]} 23. Rhf1 {[%clk 0:01:41.5]} 23... Ne6
{[%clk 0:01:58.5]} 24. f5 {[%clk 0:01:31.4]} 24... Nd4 {[%clk 0:01:37]} 25. h5
{[%clk 0:01:32.6]} 25... Rb3 {[%clk 0:01:35]} 26. Ka2 {[%clk 0:01:29.5]} 26...
Rbxc3 {[%clk 0:00:44.9]} 27. bxc3 {[%clk 0:01:30.5]} 27... Nb5 {[%clk
0:00:41.3]} 28. Bxb5 {[%clk 0:01:26.4]} 28... Bxb5 {[%clk 0:00:42.6]} 29. Rf3
{[%clk 0:01:05.9]} 29... Bc4+ {[%clk 0:00:42.9]} 30. Rb3 {[%clk 0:01:06.4]}
30... gxf5 {[%clk 0:00:41.4]} 31. exf5 {[%clk 0:01:04.5]} 31... Qe5 {[%clk
0:00:32]} 32. Kb2 {[%clk 0:01:00.9]} 32... Bxb3 {[%clk 0:00:29.1]} 33. cxb3
{[%clk 0:01:02.3]} 33... a5 {[%clk 0:00:21.5]} 34. h6 {[%clk 0:01:02.7]} 34...
Qe4 {[%clk 0:00:21.5]} 35. Rf4 {[%clk 0:01:00.5]} 35... Qe5 {[%clk 0:00:22.4]}
36. Rf2 {[%clk 0:00:57.1]} 36... a4 {[%clk 0:00:22.9]} 37. b4 {[%clk 0:00:56.3]}
37... Rc4 {[%clk 0:00:20.6]} 38. Qd3 {[%clk 0:00:54.1]} 38... Re4 {[%clk
0:00:18.4]} 39. Qa6 {[%clk 0:00:53]} 39... f6 {[%clk 0:00:14.4]} 40. g6 {[%clk
0:00:47.5]} 40... hxg6 {[%clk 0:00:15.4]} 41. fxg6 {[%clk 0:00:48.7]} 41... Qd5
{[%clk 0:00:08.7]} 42. Qc8# {[%clk 0:00:47.8]} 1-0

[Event "*** Titled Tuesday 3|2 Blitz"]
[Site "Chess.com"]
[Date "2015.10.06"]
[Round "2"]
[White "Keranke"]
[Black "Ginger_GM"]
[Result "0-1"]
[WhiteElo "2580"]
[BlackElo "2449"]
[TimeControl "180+2"]
[EndTime "11:20:58 PDT"]
[Termination "Ginger_GM won by resignation"]

1. d4 {[%clk 0:03:01.9]} 1... e6 {[%clk 0:02:59.5]} 2. c4 {[%clk 0:03:00.4]}
2... f5 {[%clk 0:02:53.9]} 3. g3 {[%clk 0:03:01.2]} 3... Nf6 {[%clk 0:02:54.8]}
4. Bg2 {[%clk 0:03:02.6]} 4... Be7 {[%clk 0:02:56.4]} 5. Nf3 {[%clk 0:03:00.8]}
5... O-O {[%clk 0:02:57.9]} 6. O-O {[%clk 0:03:02.4]} 6... d6 {[%clk 0:02:59.2]}
7. Nc3 {[%clk 0:03:02.5]} 7... a5 {[%clk 0:02:59.8]} 8. Re1 {[%clk 0:02:58.9]}
8... Ne4 {[%clk 0:03:00.1]} 9. Qd3 {[%clk 0:02:55.6]} 9... Nc6 {[%clk
0:03:00.4]} 10. Nxe4 {[%clk 0:02:42]} 10... Nb4 {[%clk 0:02:59.5]} 11. Qb1
{[%clk 0:02:40.7]} 11... fxe4 {[%clk 0:03:01.4]} 12. Qxe4 {[%clk 0:02:42.6]}
12... e5 {[%clk 0:03:02.6]} 13. dxe5 {[%clk 0:02:34.1]} 13... Bf5 {[%clk
0:03:03]} 14. Qxb7 {[%clk 0:02:35.7]} 14... Rb8 {[%clk 0:03:03.2]} 15. Qa7
{[%clk 0:02:35.1]} 15... c5 {[%clk 0:03:03]} 16. exd6 {[%clk 0:02:28.3]} 16...
Bxd6 {[%clk 0:03:04.9]} 17. Bg5 {[%clk 0:02:20.3]} 17... Qc8 {[%clk 0:03:05.6]}
18. Nh4 {[%clk 0:02:20]} 18... Bh3 {[%clk 0:03:03.8]} 19. Be7 {[%clk 0:02:08.4]}
19... Rf7 {[%clk 0:02:25.2]} 20. Bxh3 {[%clk 0:01:25.7]} 20... Qxh3 {[%clk
0:02:25.2]} 21. Bxd6 {[%clk 0:01:27.2]} 21... Rxa7 {[%clk 0:02:23.5]} 22. Bxb8
{[%clk 0:01:28.4]} 22... Rd7 {[%clk 0:02:16.1]} 23. Rad1 {[%clk 0:01:25.3]}
23... Nc2 {[%clk 0:02:09.3]} 24. Rxd7 {[%clk 0:00:56.3]} 24... Qxd7 {[%clk
0:02:11.2]} 25. Rb1 {[%clk 0:00:45.7]} 25... Nd4 {[%clk 0:02:10.8]} 26. e3
{[%clk 0:00:22.3]} 26... Ne2+ {[%clk 0:01:58.5]} 27. Kf1 {[%clk 0:00:14.3]}
27... Qd3 {[%clk 0:01:58.4]} 28. Re1 {[%clk 0:00:16.2]} 28... Nxg3+ {[%clk
0:01:45.1]} 29. Kg2 {[%clk 0:00:17.6]} 29... Ne4 {[%clk 0:01:40.8]} 30. b3
{[%clk 0:00:17.8]} 30... Qd2 {[%clk 0:01:31.8]} 31. Rf1 {[%clk 0:00:19.2]} 31...
Qxa2 {[%clk 0:01:31.4]} 32. Bg3 {[%clk 0:00:21.1]} 32... Qxb3 {[%clk 0:01:31.8]}
33. Ra1 {[%clk 0:00:22.1]} 33... a4 {[%clk 0:01:31.5]} 34. Nf3 {[%clk
0:00:21.9]} 34... a3 {[%clk 0:01:31.3]} 35. Be5 {[%clk 0:00:18.4]} 35... Kf7
{[%clk 0:01:27.9]} 36. Rc1 {[%clk 0:00:17.3]} 36... a2 {[%clk 0:01:27.3]} 37. h3
{[%clk 0:00:16.1]} 37... g5 {[%clk 0:01:26.1]} 38. Ba1 {[%clk 0:00:16.2]} 38...
Ke6 {[%clk 0:01:25.2]} 39. Nh2 {[%clk 0:00:09.2]} 39... h5 {[%clk 0:01:22]} 40.
Nf3 {[%clk 0:00:09.9]} 40... Qb1 {[%clk 0:01:21.7]} 41. Rf1 {[%clk 0:00:10.2]}
41... Kf5 {[%clk 0:01:20.6]} 42. Bg7 {[%clk 0:00:08.4]} 42... g4 {[%clk
0:01:13.7]} 43. hxg4+ {[%clk 0:00:10.3]} 43... hxg4 {[%clk 0:01:14.4]} 44. Nh2
{[%clk 0:00:09.1]} 44... Nd2 {[%clk 0:01:13.8]} 45. Rg1 {[%clk 0:00:09.8]} 45...
Qe4+ {[%clk 0:01:10.9]} 46. Kg3 {[%clk 0:00:11.1]} 46... Qxc4 {[%clk 0:01:10]}
47. f3 {[%clk 0:00:10.8]} 47... gxf3 {[%clk 0:01:06.8]} 48. Nxf3 {[%clk
0:00:12]} 48... Qg4+ {[%clk 0:01:06.5]} 0-1

[Event "*** Titled Tuesday 3|2 Blitz"]
[Site "Chess.com"]
[Date "2015.10.06"]
[Round "2"]
[White "Saitama_Hero"]
[Black "BIG_Pirate"]
[Result "1-0"]
[WhiteElo "2135"]
[BlackElo "2264"]
[TimeControl "180+2"]
[EndTime "11:21:30 PDT"]
[Termination "Saitama_Hero won by resignation"]

1. d4 {[%clk 0:03:01.9]} 1... Nf6 {[%clk 0:02:57.6]} 2. c4 {[%clk 0:03:03.3]}
2... e6 {[%clk 0:02:58.6]} 3. Nc3 {[%clk 0:03:04.7]} 3... Bb4 {[%clk 0:02:58.8]}
4. f3 {[%clk 0:03:05.8]} 4... c5 {[%clk 0:02:54.6]} 5. d5 {[%clk 0:03:00]} 5...
O-O {[%clk 0:02:52.3]} 6. e4 {[%clk 0:03:00]} 6... d6 {[%clk 0:02:48.9]} 7. Bd3
{[%clk 0:02:58.7]} 7... exd5 {[%clk 0:02:49.7]} 8. cxd5 {[%clk 0:02:58.5]} 8...
Nbd7 {[%clk 0:02:46.6]} 9. Ne2 {[%clk 0:02:59.2]} 9... Ne5 {[%clk 0:02:47.3]}
10. Bc2 {[%clk 0:02:57.1]} 10... a6 {[%clk 0:02:47.7]} 11. O-O {[%clk
0:02:57.4]} 11... b5 {[%clk 0:02:48.8]} 12. f4 {[%clk 0:02:56.4]} 12... Ng6
{[%clk 0:02:42.2]} 13. e5 {[%clk 0:02:49.3]} 13... dxe5 {[%clk 0:02:41]} 14. f5
{[%clk 0:02:50.8]} 14... Ne7 {[%clk 0:02:33.4]} 15. Bg5 {[%clk 0:02:46.5]} 15...
Nexd5 {[%clk 0:02:24.2]} 16. Ne4 {[%clk 0:02:36.9]} 16... Qe7 {[%clk 0:02:08.8]}
17. N2g3 {[%clk 0:02:34.9]} 17... h6 {[%clk 0:02:09.1]} 18. Bh4 {[%clk
0:02:28.2]} 18... c4 {[%clk 0:02:07.3]} 19. Nh5 {[%clk 0:02:26.4]} 19... Qa7+
{[%clk 0:02:07.4]} 20. Bf2 {[%clk 0:02:26.3]} 20... Qe7 {[%clk 0:02:02.3]} 21.
Nhxf6+ {[%clk 0:02:14.8]} 21... Nxf6 {[%clk 0:02:02.6]} 22. Bh4 {[%clk
0:02:15.9]} 22... Qa7+ {[%clk 0:01:56.5]} 23. Bf2 {[%clk 0:02:11.3]} 23... Qe7
{[%clk 0:01:57.3]} 24. a3 {[%clk 0:02:06.9]} 24... Ba5 {[%clk 0:01:50]} 25. Bc5
{[%clk 0:02:05.8]} 25... Qd8 {[%clk 0:01:24.5]} 26. Bxf8 {[%clk 0:01:51.8]}
26... Kxf8 {[%clk 0:01:25.4]} 27. Nxf6 {[%clk 0:01:34.7]} 27... Qxf6 {[%clk
0:01:23.9]} 28. Qd5 {[%clk 0:01:30.6]} 28... Rb8 {[%clk 0:01:16]} 29. Rad1
{[%clk 0:01:00.9]} 29... Bb6+ {[%clk 0:01:17]} 30. Kh1 {[%clk 0:01:00.5]} 30...
Bd4 {[%clk 0:01:18.1]} 31. Rfe1 {[%clk 0:00:39.9]} 31... Bb7 {[%clk 0:01:16.3]}
32. Qd7 {[%clk 0:00:41.4]} 32... Kg8 {[%clk 0:00:43.4]} 33. Qc7 {[%clk
0:00:38.7]} 33... Ba7 {[%clk 0:00:41.5]} 34. Rxe5 {[%clk 0:00:32.8]} 34... Qg5
{[%clk 0:00:38.7]} 35. Re2 {[%clk 0:00:25.4]} 35... Qg4 {[%clk 0:00:39.9]} 36.
f6 {[%clk 0:00:19.8]} 36... gxf6 {[%clk 0:00:35.8]} 37. Rde1 {[%clk 0:00:14.9]}
37... Kg7 {[%clk 0:00:24.7]} 38. Be4 {[%clk 0:00:12.9]} 38... Bxe4 {[%clk
0:00:16.9]} 39. Rxe4 {[%clk 0:00:14.8]} 39... Qc8 {[%clk 0:00:11.8]} 40. Qxa7
{[%clk 0:00:15.9]} 40... Rb7 {[%clk 0:00:11.4]} 41. Qf2 {[%clk 0:00:17.3]} 41...
Rd7 {[%clk 0:00:11]} 42. Qg3+ {[%clk 0:00:18.8]} 42... Kh7 {[%clk 0:00:11.7]}
43. h3 {[%clk 0:00:17.9]} 43... Qc6 {[%clk 0:00:12.7]} 44. Re8 {[%clk
0:00:18.2]} 1-0

[Event "*** Titled Tuesday 3|2 Blitz"]
[Site "Chess.com"]
[Date "2015.10.06"]
[Round "2"]
[White "Haridaskesavan"]
[Black "Po6Don"]
[Result "0-1"]
[WhiteElo "2042"]
[BlackElo "2101"]
[TimeControl "180+2"]
[EndTime "11:21:53 PDT"]
[Termination "Po6Don won by resignation"]

1. e4 {[%clk 0:03:01.9]} 1... e5 {[%clk 0:02:59]} 2. Nf3 {[%clk 0:03:02.3]} 2...
Nc6 {[%clk 0:03:00.4]} 3. Bc4 {[%clk 0:03:03.3]} 3... Nf6 {[%clk 0:03:00.8]} 4.
d3 {[%clk 0:03:03.9]} 4... d5 {[%clk 0:03:01.9]} 5. exd5 {[%clk 0:03:04.4]} 5...
Nxd5 {[%clk 0:03:03.8]} 6. O-O {[%clk 0:03:05.3]} 6... Bg4 {[%clk 0:03:04.9]} 7.
Re1 {[%clk 0:03:04.9]} 7... Be7 {[%clk 0:03:05.1]} 8. h3 {[%clk 0:02:56.1]} 8...
Bh5 {[%clk 0:03:05.7]} 9. c3 {[%clk 0:02:45.7]} 9... O-O {[%clk 0:03:02.8]} 10.
Nbd2 {[%clk 0:02:41.4]} 10... Nb6 {[%clk 0:02:29.8]} 11. Bb5 {[%clk 0:02:35.8]}
11... Bd6 {[%clk 0:02:30.5]} 12. Ne4 {[%clk 0:02:31.5]} 12... f5 {[%clk
0:02:21.9]} 13. Ng3 {[%clk 0:02:23.3]} 13... Bg6 {[%clk 0:01:36.1]} 14. Ng5
{[%clk 0:02:21.3]} 14... Qf6 {[%clk 0:01:20]} 15. Nh5 {[%clk 0:02:02.8]} 15...
Bxh5 {[%clk 0:01:12.4]} 16. Qxh5 {[%clk 0:02:02.1]} 16... h6 {[%clk 0:01:13.9]}
17. Nf3 {[%clk 0:01:57.8]} 17... Rae8 {[%clk 0:01:05]} 18. Bd2 {[%clk
0:01:50.5]} 18... e4 {[%clk 0:01:05.2]} 19. Nh4 {[%clk 0:01:42.2]} 19... g5
{[%clk 0:00:55.9]} 20. Ng6 {[%clk 0:01:37.3]} 20... Rf7 {[%clk 0:00:46.1]} 21.
Qxh6 {[%clk 0:01:30.8]} 21... Rg7 {[%clk 0:00:41.3]} 22. Bxg5 {[%clk 0:00:46.6]}
22... Qxg6 {[%clk 0:00:38.9]} 23. Qxg6 {[%clk 0:00:46.9]} 23... Rxg6 {[%clk
0:00:40.8]} 24. Be3 {[%clk 0:00:47.7]} 24... a6 {[%clk 0:00:24.6]} 25. Bxc6
{[%clk 0:00:42.4]} 25... bxc6 {[%clk 0:00:26.5]} 26. dxe4 {[%clk 0:00:41.1]}
26... Rxe4 {[%clk 0:00:24.2]} 27. f3 {[%clk 0:00:31.4]} 27... Rxe3 {[%clk
0:00:23.2]} 28. Rxe3 {[%clk 0:00:31.8]} 28... Bc5 {[%clk 0:00:24.9]} 29. Kf2
{[%clk 0:00:30.4]} 29... Re6 {[%clk 0:00:24.9]} 30. Re1 {[%clk 0:00:29.1]} 30...
Nd5 {[%clk 0:00:23]} 31. b4 {[%clk 0:00:23.8]} 31... Rxe3 {[%clk 0:00:14.5]} 32.
Rh1 {[%clk 0:00:20.2]} 32... Bb6 {[%clk 0:00:12.9]} 33. Kg3 {[%clk 0:00:20.6]}
33... f4+ {[%clk 0:00:11.9]} 34. Kg4 {[%clk 0:00:21.4]} 34... Rxc3 {[%clk
0:00:12.5]} 35. Re1 {[%clk 0:00:20.2]} 35... Re3 {[%clk 0:00:13.2]} 36. Rb1
{[%clk 0:00:20.4]} 36... Re2 {[%clk 0:00:14]} 37. a4 {[%clk 0:00:19.7]} 37...
Rxg2+ {[%clk 0:00:13.6]} 38. Kf5 {[%clk 0:00:21.2]} 38... Bd4 {[%clk 0:00:10]}
39. b5 {[%clk 0:00:21.1]} 39... axb5 {[%clk 0:00:10.6]} 40. a5 {[%clk
0:00:22.1]} 40... b4 {[%clk 0:00:10.6]} 41. a6 {[%clk 0:00:22.9]} 41... b3
{[%clk 0:00:10.9]} 42. Rd1 {[%clk 0:00:23.7]} 42... Bb6 {[%clk 0:00:10.4]} 43.
Rb1 {[%clk 0:00:22.1]} 43... b2 {[%clk 0:00:11.4]} 44. Ke6 {[%clk 0:00:22.6]}
44... Nc3 {[%clk 0:00:12.4]} 45. a7 {[%clk 0:00:17.1]} 45... Bxa7 {[%clk
0:00:12.7]} 46. Re1 {[%clk 0:00:17.2]} 46... Re2+ {[%clk 0:00:12.7]} 47. Kf5
{[%clk 0:00:12.4]} 47... Rxe1 {[%clk 0:00:12.6]} 48. Kg6 {[%clk 0:00:13]} 48...
b1=Q+ {[%clk 0:00:14.5]} 49. Kh5 {[%clk 0:00:13.4]} 49... Re5+ {[%clk
0:00:15.4]} 0-1

[Event "*** Titled Tuesday 3|2 Blitz"]
[Site "Chess.com"]
[Date "2015.10.06"]
[Round "2"]
[White "enen0315"]
[Black "metalbattler"]
[Result "0-1"]
[WhiteElo "1924"]
[BlackElo "1896"]
[TimeControl "180+2"]
[EndTime "11:22:30 PDT"]
[Termination "metalbattler won on time"]

1. d4 {[%clk 0:02:45.9]} 1... d5 {[%clk 0:03:00.6]} 2. c4 {[%clk 0:02:40.2]}
2... c6 {[%clk 0:03:01.6]} 3. Nf3 {[%clk 0:02:40.8]} 3... Nf6 {[%clk 0:03:02.5]}
4. e3 {[%clk 0:02:41.4]} 4... e6 {[%clk 0:03:03.7]} 5. b3 {[%clk 0:02:40.4]}
5... Bd6 {[%clk 0:03:02.2]} 6. Bb2 {[%clk 0:02:41.2]} 6... O-O {[%clk
0:03:01.2]} 7. Nbd2 {[%clk 0:02:42.3]} 7... Nbd7 {[%clk 0:03:01.8]} 8. Bd3
{[%clk 0:02:39.9]} 8... b6 {[%clk 0:03:01.3]} 9. O-O {[%clk 0:02:40.2]} 9... Bb7
{[%clk 0:03:02.3]} 10. Ne5 {[%clk 0:02:41.2]} 10... c5 {[%clk 0:02:57.3]} 11. f4
{[%clk 0:02:41.3]} 11... Qe7 {[%clk 0:02:51.7]} 12. cxd5 {[%clk 0:02:37.2]}
12... exd5 {[%clk 0:02:50.1]} 13. Rf3 {[%clk 0:02:35.8]} 13... Ne4 {[%clk
0:02:43.1]} 14. Rh3 {[%clk 0:02:32.6]} 14... f5 {[%clk 0:02:28.2]} 15. Ndf3
{[%clk 0:02:17.3]} 15... a5 {[%clk 0:02:02.8]} 16. Nxd7 {[%clk 0:02:16.1]} 16...
Qxd7 {[%clk 0:02:02.4]} 17. Ne5 {[%clk 0:02:15.8]} 17... Bxe5 {[%clk 0:01:58.8]}
18. fxe5 {[%clk 0:02:15.6]} 18... Ba6 {[%clk 0:01:51.9]} 19. Bxe4 {[%clk
0:02:05.3]} 19... fxe4 {[%clk 0:01:38]} 20. Qh5 {[%clk 0:02:04.8]} 20... g6
{[%clk 0:01:34.8]} 21. Qg5 {[%clk 0:01:45.5]} 21... Qf5 {[%clk 0:01:32.3]} 22.
Qxf5 {[%clk 0:01:37.4]} 22... Rxf5 {[%clk 0:01:34.2]} 23. g4 {[%clk 0:01:30.9]}
23... Rf7 {[%clk 0:01:16.3]} 24. e6 {[%clk 0:01:18.1]} 24... Re7 {[%clk
0:01:10.9]} 25. dxc5 {[%clk 0:01:18.1]} 25... bxc5 {[%clk 0:01:10.7]} 26. Rc1
{[%clk 0:01:14.4]} 26... c4 {[%clk 0:01:10.5]} 27. bxc4 {[%clk 0:01:08.5]} 27...
Bxc4 {[%clk 0:01:11]} 28. a3 {[%clk 0:01:06.2]} 28... Rxe6 {[%clk 0:01:11.8]}
29. g5 {[%clk 0:01:03]} 29... Rb8 {[%clk 0:01:12]} 30. Bd4 {[%clk 0:01:00.8]}
30... Rb3 {[%clk 0:01:04]} 31. Rh4 {[%clk 0:00:54.2]} 31... Re7 {[%clk
0:00:58.8]} 32. Rf4 {[%clk 0:00:53.7]} 32... Rf7 {[%clk 0:00:58.9]} 33. Rxf7
{[%clk 0:00:47.1]} 33... Kxf7 {[%clk 0:01:00.8]} 34. Bc5 {[%clk 0:00:48.2]}
34... Ke6 {[%clk 0:00:57.7]} 35. Kf2 {[%clk 0:00:48.9]} 35... Kf5 {[%clk
0:00:58.4]} 36. Be7 {[%clk 0:00:45.5]} 36... Kg4 {[%clk 0:00:56.6]} 37. h3+
{[%clk 0:00:44.5]} 37... Kxh3 {[%clk 0:00:54.8]} 38. Rh1+ {[%clk 0:00:44.8]}
38... Kg4 {[%clk 0:00:56.4]} 39. Rxh7 {[%clk 0:00:45.4]} 39... Rb2+ {[%clk
0:00:58]} 40. Ke1 {[%clk 0:00:45.6]} 40... Kf3 {[%clk 0:00:55.5]} 41. Rh3+
{[%clk 0:00:46.4]} 41... Kg4 {[%clk 0:00:54.8]} 42. Rh6 {[%clk 0:00:48]} 42...
Rb6 {[%clk 0:00:42.3]} 43. Bf6 {[%clk 0:00:45.9]} 43... Rb3 {[%clk 0:00:37.5]}
44. Rxg6 {[%clk 0:00:42]} 44... Rxe3+ {[%clk 0:00:37.7]} 45. Kd2 {[%clk
0:00:43.4]} 45... Rd3+ {[%clk 0:00:36.8]} 46. Ke1 {[%clk 0:00:41.2]} 46... e3
{[%clk 0:00:36.9]} 47. Rh6 {[%clk 0:00:38.5]} 47... Rxa3 {[%clk 0:00:35.3]} 48.
g6 {[%clk 0:00:37.6]} 48... Rb3 {[%clk 0:00:32.5]} 49. Kd1 {[%clk 0:00:23.1]}
49... Bd3 {[%clk 0:00:33.9]} 50. Rh4+ {[%clk 0:00:14.9]} 50... Kf5 {[%clk
0:00:35.4]} 0-1

[Event "*** Titled Tuesday 3|2 Blitz"]
[Site "Chess.com"]
[Date "2015.10.06"]
[Round "2"]
[White "kpio91"]
[Black "AlexanderL"]
[Result "0-1"]
[WhiteElo "2496"]
[BlackElo "2552"]
[TimeControl "180+2"]
[EndTime "11:22:32 PDT"]
[Termination "AlexanderL won by resignation"]

1. c4 {[%clk 0:03:01.9]} 1... e5 {[%clk 0:03:00]} 2. g3 {[%clk 0:03:02.6]} 2...
Nc6 {[%clk 0:03:00.6]} 3. Bg2 {[%clk 0:03:04]} 3... g6 {[%clk 0:03:01.8]} 4. Nc3
{[%clk 0:03:04.5]} 4... Bg7 {[%clk 0:03:03.1]} 5. e4 {[%clk 0:03:05.9]} 5... d6
{[%clk 0:03:02.7]} 6. Nge2 {[%clk 0:03:07.1]} 6... h5 {[%clk 0:03:03.4]} 7. h4
{[%clk 0:03:06]} 7... Nd4 {[%clk 0:03:03.5]} 8. Nxd4 {[%clk 0:02:59.4]} 8...
exd4 {[%clk 0:03:04.6]} 9. Ne2 {[%clk 0:03:01]} 9... Ne7 {[%clk 0:03:05.7]} 10.
d3 {[%clk 0:03:01.1]} 10... Nc6 {[%clk 0:03:03.4]} 11. Rb1 {[%clk 0:02:46]}
11... a5 {[%clk 0:03:03.4]} 12. b3 {[%clk 0:02:42.8]} 12... O-O {[%clk
0:03:03.3]} 13. O-O {[%clk 0:02:42.7]} 13... Kh7 {[%clk 0:02:56.4]} 14. f4
{[%clk 0:02:37.1]} 14... f5 {[%clk 0:02:43.4]} 15. Qe1 {[%clk 0:02:24.6]} 15...
Re8 {[%clk 0:02:39]} 16. a3 {[%clk 0:02:23.4]} 16... fxe4 {[%clk 0:02:26.5]} 17.
Bxe4 {[%clk 0:02:24.1]} 17... Bf5 {[%clk 0:02:23.8]} 18. Bxf5 {[%clk 0:02:08.2]}
18... gxf5 {[%clk 0:02:25.7]} 19. Qf2 {[%clk 0:02:09.9]} 19... Qe7 {[%clk
0:02:13.6]} 20. Rb2 {[%clk 0:02:08.1]} 20... Qf7 {[%clk 0:02:11.4]} 21. Qf3
{[%clk 0:01:56.8]} 21... Re7 {[%clk 0:02:01.4]} 22. Kh2 {[%clk 0:01:57.6]} 22...
Rae8 {[%clk 0:02:01.5]} 23. Ng1 {[%clk 0:01:59.3]} 23... Kg6 {[%clk 0:01:54.5]}
24. Re2 {[%clk 0:01:50.6]} 24... Rxe2+ {[%clk 0:01:51.8]} 25. Nxe2 {[%clk
0:01:51.7]} 25... Re7 {[%clk 0:01:27.3]} 26. Bd2 {[%clk 0:01:43.7]} 26... Qe8
{[%clk 0:01:27.2]} 27. Nc1 {[%clk 0:01:44.8]} 27... b6 {[%clk 0:01:19.4]} 28. b4
{[%clk 0:01:45.6]} 28... axb4 {[%clk 0:01:20.4]} 29. axb4 {[%clk 0:01:46.5]}
29... Nd8 {[%clk 0:01:21.6]} 30. Rf2 {[%clk 0:01:37.2]} 30... Nf7 {[%clk
0:01:19.9]} 31. Re2 {[%clk 0:01:36.2]} 31... Nh6 {[%clk 0:01:20.9]} 32. Rxe7
{[%clk 0:01:32.8]} 32... Qxe7 {[%clk 0:01:22]} 33. b5 {[%clk 0:01:34.5]} 33...
Ng4+ {[%clk 0:01:22.2]} 34. Kg2 {[%clk 0:01:35.6]} 34... Bf6 {[%clk 0:01:13.4]}
35. Qa8 {[%clk 0:01:14.7]} 35... Kg7 {[%clk 0:01:06.9]} 36. Qf3 {[%clk
0:01:11.6]} 36... Kg6 {[%clk 0:00:56.4]} 37. Na2 {[%clk 0:01:08]} 37... d5
{[%clk 0:00:56.1]} 38. Nb4 {[%clk 0:00:48.1]} 38... dxc4 {[%clk 0:00:55.3]} 39.
dxc4 {[%clk 0:00:47.6]} 39... Ne3+ {[%clk 0:00:52.2]} 40. Bxe3 {[%clk 0:00:44]}
40... Qxb4 {[%clk 0:00:51.6]} 41. Bf2 {[%clk 0:00:27.4]} 41... Qxc4 {[%clk
0:00:49.2]} 42. Qa8 {[%clk 0:00:29.1]} 42... Kg7 {[%clk 0:00:37.9]} 43. Qe8
{[%clk 0:00:29.1]} 43... Qd5+ {[%clk 0:00:35.5]} 44. Kg1 {[%clk 0:00:26.3]}
44... d3 {[%clk 0:00:35.1]} 45. Qxh5 {[%clk 0:00:26.6]} 45... d2 {[%clk
0:00:34.6]} 46. Qd1 {[%clk 0:00:28.3]} 46... Qd3 {[%clk 0:00:28.7]} 47. Kg2
{[%clk 0:00:21.6]} 47... Bc3 {[%clk 0:00:25.2]} 48. Kg1 {[%clk 0:00:18.6]} 48...
Qxb5 {[%clk 0:00:24.8]} 49. Qc2 {[%clk 0:00:13]} 49... Qb2 {[%clk 0:00:16.3]}
50. Qxf5 {[%clk 0:00:08.8]} 50... d1=Q+ {[%clk 0:00:17.2]} 51. Kg2 {[%clk
0:00:10.3]} 51... Bf6 {[%clk 0:00:11.4]} 52. h5 {[%clk 0:00:09.9]} 52... Qbc2
{[%clk 0:00:06.2]} 53. h6+ {[%clk 0:00:08.9]} 53... Kf7 {[%clk 0:00:07.2]} 54.
Qc8 {[%clk 0:00:03]} 0-1